Cogmind - Beta 14 @@@ ROGUE MODE // 2024.09.02 @ 14:04:21 Player: Beef Result: Destroyed by D-53 Grenadier with Mini Grenade Launcher Performance ------------- Evolutions (0) 0 Regions Visited (2) 400 Robots Destroyed (8) 40 Value Destroyed (264) 264 Prototype IDs (3) 60 Alien Tech Used (0) 0 Bonus (-44) -44 TOTAL SCORE: 720 Bonus ------- Friendly Fire -44 Cogmind --------- Core Integrity 0/250 Matter 245/300 Energy 100/100 System Corruption 0% Temperature Cool (0) Movement Walking (120) Location -10/Mines Parts ------- > --- POWER (1) -------- (None) > --- PROPULSION (2) --- Aluminum Leg > --- UTILITY (2) ------ Medium Storage Unit > --- WEAPON (2) ------- (None) > --- INVENTORY (10) --- Light Nuclear Core Improved Heat Sink Signal Interpreter Small Laser Small Laser Particle Gun Mining Laser Makeshift Hammer Peak State ------------ > --- POWER ------------ Light Nuclear Core > --- PROPULSION ------- Light Treads Light Treads > --- UTILITY ---------- Medium Storage Unit Sensor Array > --- WEAPON ----------- Grenade Launcher YI-UF0's Doublenader > --- INVENTORY -------- Aluminum Leg Aluminum Leg Improved Heat Sink Signal Interpreter EM Pulse Gun Small Laser Small Laser Particle Gun Mining Laser Makeshift Hammer [Rating: 13] Favorites ----------- Power Ion Engine Engine Ion Engine Power Core Light Nuclear Core Propulsion Light Treads Treads Light Treads Leg Aluminum Leg Utility Sensor Array Device Sensor Array Storage Medium Storage Unit Weapon Small Laser Energy Gun Small Laser Ballistic Gun Assault Rifle Launcher Grenade Launcher Build | -11 -10 -10 ------- Run | Yrd Mat Min Slots Evolved . | . . . Power . | . . . Propulsion . | . . . Utility . | . . . Weapon . | . . . Parts Attached 22 | 6 4 12 Power 3 | 1 . 2 Engine 2 | 1 . 1 Core 1 | . . 1 Reactor . | . . . Propulsion 7 | 2 1 4 Treads 2 | . . 2 Leg 5 | 2 1 2 Wheel . | . . . Hover . | . . . Flight . | . . . Utility 3 | 1 2 . Device 1 | . 1 . Storage 2 | 1 1 . Processor . | . . . Hackware . | . . . Protection . | . . . Artifact . | . . . Weapon 9 | 2 1 6 Energy Gun 5 | 1 1 3 Energy Cannon . | . . . Ballistic Gun 1 | 1 . . Ballistic Cannon . | . . . Launcher 3 | . . 3 Special Weapon . | . . . Impact Weapon . | . . . Slashing Weapon . | . . . Piercing Weapon . | . . . Special Melee Weapon . | . . . Unidentified Prototypes 1 | . . 1 Parts Lost 10 | . . 10 Power 1 | . . 1 Propulsion 3 | . . 3 Utility 1 | . . 1 Weapon 5 | . . 5 Highest Loss Streak 8 | . . 8 To Critical Strikes . | . . . Average Slot Usage (%) 97 | . 96 98 Engine 7 | . 14 4 Core 5 | . . 9 Treads 15 | . . 24 Leg 11 | . 28 2 Device 12 | . 10 14 Storage 14 | . 14 14 Energy Gun 19 | . 14 22 Ballistic Gun 7 | . 14 3 Launcher 1 | . . 1 Peak Build Rating 13 | 6 7 13 Average Rating 8 | 4 6 10 On Entrance 4 | . 6 7 Naked Turns . | . . . Heaviest Build 25 | 14 19 25 Greatest Support 40 | 20 20 40 Greatest Overweight (x) 1 | . . 1 Average Overweight (x) . | . . . Largest Inventory Capacity 10 | 8 10 10 Average Capacity 9 | 6 8 10 Most Carried 10 | 4 8 10 Average Carried 7 | 2 5 9 Final Capacity 10 | 8 10 10 Final Carried 8 | 4 8 8 Class Distribution -------------------- 100% | Mutant Dominant Class ---------------- Mutant | -10/Materials Mutant | -10/Mines Resources | -11 -10 -10 ----------- Run | Yrd Mat Min Matter Collected 543 | 223 63 257 Remotely . | . . . Salvage Created 364 | . 100 264 Parts 13 | . 7 6 Haulers Intercepted . | . . . Recyclers Shooed . | . . . Parts Field Recycled . | . . . Retrieved Matter . | . . . Parts Self-Destructed . | . . . Prevented . | . . . Kills | -11 -10 -10 ------- Run | Yrd Mat Min Combat Hostiles Destroyed 25 | . 2 23 Guns 6 | . 2 4 AOE 19 | . . 19 Classes Destroyed 4 | . 2 2 Builder 1 | . . 1 Watcher 1 | . 1 . Grunt 6 | . 2 4 Assembled 19 | . . 19 Best Kill Streak 19 | . 1 19 Combat Bots Only 19 | . 1 19 Max Kills in Single Turn 8 | . 1 8 Gunslinging . | . . . Exploded 8 | . . 8 Melee . | . . . Uniques/NPCs Destroyed . | . . . Combat | -11 -10 -10 -------- Run | Yrd Mat Min Hostile Shots Fired 74 | . 18 56 Missed 17 | . 5 12 Damage Taken 1253 | . 165 1088 Core 279 | . . 279 Absorbed by Shields . | . . . Core Remaining (%) 100 | 100 . . Volleys Fired 40 | . 17 23 Largest 2 | . 2 2 Hottest 105 | . 60 105 Shots Fired 76 | . 33 43 Gun 65 | . 33 32 Cannon . | . . . Launcher 11 | . . 11 Special . | . . . Kinetic 29 | . 17 12 Thermal 33 | . 14 19 Explosive 11 | . . 11 Electromagnetic 3 | . 2 1 Robot Hit Streak 12 | . 8 12 Robot Miss Streak 3 | . 2 3 Penetration Max . | . . . Secondary Targets . | . . . Shots Hit Robots 48 | . 18 30 Core Hits 55 | . 6 49 Critical Kills . | . . . Critical Parts Destroyed 2 | . . 2 Critical Strikes 2 | . . 2 Destroy 2 | . . 2 Melee Attacks . | . . . Impact . | . . . Slashing . | . . . Piercing . | . . . Sneak Attacks . | . . . Combat Hostiles . | . . . Follow-up Attacks . | . . . Damage Inflicted 1482 | . 222 1260 Guns 522 | . 222 300 Cannons . | . . . Explosions 936 | . . 936 Melee . | . . . Ramming 24 | . . 24 Kinetic 237 | . 120 117 Thermal 254 | . 82 172 Explosive 936 | . . 936 Electromagnetic 31 | . 20 11 Impact . | . . . Slashing . | . . . Piercing . | . . . Highest Corruption . | . . . Average Corruption . | . . . Corruption Purged . | . . . Corruption Blocked . | . . . Overload Shots . | . . . Overflow Damage . | . . . Projectiles . | . . . Explosions . | . . . Melee . | . . . Knockbacks 1 | . . 1 Impact 1 | . . 1 Kinetic . | . . . Secondary . | . . . Self-Inflicted Damage 98 | . . 98 Shots 3 | . . 3 Rammed 2 | . . 2 Targets Rammed 3 | . . 3 Kicked . | . . . Crushed 1 | . . 1 Highest Temperature 175 | . 54 175 Average Temperature 49 | . 31 56 Received Heat Transfer 314 | . 108 206 Siege Activations . | . . . Robots Corrupted . | . . . Combat Hostiles . | . . . Parts Fried . | . . . Impact Corruptions . | . . . Robots Melted . | . . . Combat Hostiles . | . . . Parts Melted 1 | . . 1 Heat Transferred 572 | . 175 397 Parts Sabotaged . | . . . Parts Stolen . | . . . Parts Stripped . | . . . Power Chain Reactions . | . . . Alert | -11 -10 -10 ------- Run | Yrd Mat Min Peak Influence 141 | . 107 141 Initial 41 | . . 41 Average 61 | . 50 74 Maximum Alert Level . | . . . Low Security (%) 100 | 100 100 100 Level 1 . | . . . Level 2 . | . . . Level 3 . | . . . Level 4 . | . . . Level 5 . | . . . High Security . | . . . Max Security . | . . . Squads Dispatched . | . . . Investigation . | . . . Extermination . | . . . Reinforcement . | . . . Assault . | . . . Garrison . | . . . Intercept . | . . . Searches Triggered . | . . . Construction Impeded . | . . . Haulers Reinforced . | . . . Active Scanning Responses . | . . . Cargo Convoy Interrupts . | . . . Stealth | -11 -10 -10 --------- Run | Yrd Mat Min Distress Signals . | . . . Communications Jammed . | . . . Distress Signals . | . . . Times Spotted 30 | . 4 26 Peak Tracking Total 20 | . 3 20 Tactical Retreats . | . . . Traps | -11 -10 -10 ------- Run | Yrd Mat Min Traps Triggered . | . . . Indirectly . | . . . Trap Hack Attempts . | . . . Triggered . | . . . Disarmed . | . . . Reprogrammed . | . . . Reused . | . . . Traps Extracted . | . . . Installed . | . . . Triggered . | . . . Machines | -11 -10 -10 ---------- Run | Yrd Mat Min Machines Disabled . | . . . Max in Single Turn . | . . . Machines Repaired . | . . . Machines Dismantled . | . . . Machines Sabotaged . | . . . Overloaded Fab Kills . | . . . Hacking | -11 -10 -10 --------- Run | Yrd Mat Min Machines Accessed 4 | . 4 . Terminals 4 | . 4 . Fabricators . | . . . Repair Stations . | . . . Recycling Units . | . . . Scanalyzers . | . . . Garrison Access . | . . . Total Hacks 15 | . 15 . Successful 7 | . 7 . Failed 8 | . 8 . Catastrophic 4 | . 4 . Database Lockouts . | . . . Manual 14 | . 14 . Terminals 15 | . 15 . Fabricators . | . . . Repair Stations . | . . . Recycling Units . | . . . Scanalyzers . | . . . Garrison Access . | . . . Terminal Hacks 3 | . 3 . Prototype ID Bank 1 | . 1 . Branch Access Points 1 | . 1 . Registered Components 1 | . 1 . Fabricator Hacks . | . . . Repair Station Hacks . | . . . Recycling Unit Hacks . | . . . Scanalyzer . | . . . Garrison Access Hacks . | . . . Unauthorized Hacks 4 | . 4 . Terminals 4 | . 4 . Botnet 4 | . 4 . Fabricators . | . . . Repair Stations . | . . . Recycling Units . | . . . Scanalyzers . | . . . Garrison Access . | . . . Data Cores Recovered . | . . . Used . | . . . Hacking Detections 4 | . 4 . Full Trace Events . | . . . Feedback Events . | . . . Feedback Blocked . | . . . Robot Schematics Acquired . | . . . Robots Built . | . . . Authchips . | . . . Time . | . . . Total Robot Build Rating . | . . . Part Schematics Acquired . | . . . Parts Built . | . . . Authchips . | . . . Time . | . . . Total Part Build Rating . | . . . Parts Repaired . | . . . Time . | . . . Parts Recycled . | . . . Recycled Matter . | . . . Retrieved Matter . | . . . Retrieved Components . | . . . Parts Scanalyzed . | . . . Part Schematics Acquired . | . . . Parts Damaged . | . . . Bothacking | -11 -10 -10 ------------ Run | Yrd Mat Min Used RIF Installer . | . . . Robots Hacked . | . . . Non-combat . | . . . Combat . | . . . Robot Hacks Applied . | . . . Relay Couplers Released . | . . . Fabnet Peak Effective % . | . . . Robots Rewired . | . . . Allies Hacked . | . . . Hacks Repelled . | . . . Allies | -11 -10 -10 -------- Run | Yrd Mat Min Total Allies . | . . . Largest Group . | . . . Highest-Rated Group . | . . . Highest-Rated Ally . | . . . Total Orders . | . . . Ally Attacks . | . . . Total Damage . | . . . Kills . | . . . Allies Corrupted . | . . . Allies Melted . | . . . Intel | -11 -10 -10 ------- Run | Yrd Mat Min Robot Analysis Total . | . . . Derelict Logs Recovered 1 | . . 1 Drone Launches . | . . . Drone Recoveries . | . . . Exploration | -11 -10 -10 ------------- Run | Yrd Mat Min Turns Passed 1090 | 75 378 637 Spaces Moved 622 | 59 232 331 Core 11 | 11 . . Treads 313 | . . 313 Legs 298 | 48 232 18 Wheels . | . . . Hover . | . . . Flight . | . . . Fastest Speed 50 | 50 120 120 Average Speed 140 | 106 120 160 Slowest Speed 240 | 120 120 240 Overloaded Moves . | . . . Propulsion Burnouts . | . . . Robots Hopped . | . . . Cave-ins Triggered . | . . . Exploration Rate (%) 34 | 4 32 66 Regions Visited 2 Branch Regions 1 Pre-discovered Areas . | . . . Known Exits Taken 1 | . 1 . Unknown Exits Taken 1 | 1 . . Scrap Searched . | . . . Spaces Dug 5 | . . 5 Terrain Destroyed 66 | . . 66 Melee . | . . . Projectile . | . . . AOE 66 | . . 66 Terrain Rammed . | . . . Walls Destroyed . | . . . Machines Disabled . | . . . Actions | -11 -10 -10 --------- Run | Yrd Mat Min Total 755 | 68 297 390 Wait 51 | . 40 11 Move 620 | 58 231 331 Hop . | . . . Pick Up 14 | 4 4 6 Fast Attach 7 | 6 . 1 Attach 6 | . 1 5 Detach 1 | . . 1 Swap 9 | . 3 6 Drop 4 | . 1 3 Fire 40 | . 17 23 Melee . | . . . Ram . | . . . Kick . | . . . Crush 3 | . . 3 Escape Stasis . | . . . Rewire . | . . . Trap . | . . . Miscellaneous . | . . . Route ------- -11/Scrapyard -10/Materials (discovered 3 exits: [*Mat] / *Min x2) -10/Mines (discovered 1 exit: [*Mat]) History --------- Turn | Location | Event 3 | -11/Scrapyard | Discovered new exit (range 15) 76 | -11/Scrapyard | Entered Materials 216 | -10/Materials | Discovered new exit (range 8) 219 | -10/Materials | Identified exit to Mines 309 | -10/Materials | Build established: Mutant 454 | -10/Materials | Entered Mines 546 | -10/Mines | Discovered new exit (range 16) 554 | -10/Mines | A weapon hastily lodged in a ceiling crevice suddenly fell to the ground 589 | -10/Mines | Learned 2 Materials zone layouts 935 | -10/Mines | YI-UF0 nonchalantly dropped a Grenade Launcher on the ground 1033 | -10/Mines | Assembled infested the area 1038 | -10/Mines | Assisted by a Guerilla fighting off Assembled 1056 | -10/Mines | Found Prototype Launcher 1056 | -10/Mines | Identified YI-UF0's Doublenader 1076 | -10/Mines | Core integrity fell below 50% 1079 | -10/Mines | Destroyed 19 combat bots 1084 | -10/Mines | Core integrity fell below 20% 1091 | -10/Mines | Destroyed by D-53 Grenadier with Mini Grenade Launcher Last Messages --------------- 01062_ Acquired 3 matter. 01066_ Acquired 61 matter. 01069_ Acquired 37 matter. 01073_ C-30 ARC bursts open, deploying its payload. 01073_ D-53 Grenadier unfolds itself. 01075_ YI-UF0's Doublenader destroyed. 01077_ The unstable cave ceiling collapses. 01077_ Lgt. Treads destroyed. 01080_ The unstable cave ceiling collapses. 01083_ U-05 Engineer lays Concrete. 01085_ Aluminum Leg destroyed. 01086_ U-05 Engineer lays Concrete. 01087_ The unstable cave ceiling collapses. 01087_ Grenade Launcher destroyed. 01087_ U-05 Engineer lays Concrete. 01090_ The unstable cave ceiling collapses. 01090_ U-05 Engineer lays Concrete. 01090_ EM Pulse Gun destroyed. 01090_ Sensor Array destroyed. 01091_ U-05 Engineer builds a Wall. Map ----- +----------------------------------------------------+ | | | | | | | | | | | | | | | | | ???????????????????????????????????????? | | ????????????????????????????####???????? | | ???????????????????????????## ##??????? | | ?????#####??????????????#### #??????? | | ????## ##????????????## ####???? | | ????# ####????????## #???? | | ????# ##??????## ## #???? | | ????# #??##### ####### #???? | | ????## ### ## ## #?????# #???? | | ?????#### # ### #?????# #???? | | ????????## ## ##?# #?????# #???? | | ?????????## # ###??# #?????#%##### | | ????????## t u##????# #?????# | | ????????# # #????# #?????##### # | | ????????# #?????# #?????????# # | | ????????# # #?????# #?????????# # | | ????????# #?????# #?????????# # | | ???????## @ #??????# #?????????# | | ?????### #??????# #?????????# | | ????## #??????# #?????????### | | ????# # #??????# #???????????? | | ????# t #?????? #???????????? | | ????## ##?????? #???????????? | | ?????# #?????? ###???????????? | | ????# #????? ????????????? ? | | ???# dd ? ??????????? | | ??# ### ??????????? | | ?# #??# ####????????????? | | ?# #??? #???????????????? | | ?# #???# #????????????????? | | ?# #????###????????????????? | | ?##" % ##????????????????????????? | | ??# ## ?????????????????????????? | | ??# ? ??????????????????????????# | | ??#?? ## ?????????????????????????## | | ????# ?? ?????????????????????????# | | ??????# ?? ?????????????????????????# | | ???????? ?? ?????????????????????????# | | ???????????????????????????????????????# | | ???????????????????????????????????????# | | ???????????????????????????????????????# | | ???????????????????????????????????????# | +----------------------------------------------------+ Best States ------------- Heat Dissipation 25 Energy Generation 14 Energy Capacity 250 Matter Stores 300 Matter Capacity 300 Sight Range 16 Robot Scan Range 14 Terrain Scan Density 10 Evasion (%) 55 Recoil Reduction 2 Item Schematics ----------------- None Robot Schematics ------------------ None Fabricated ------------ Nothing Alien Tech Used ----------------- None Achievements -------------- None Challenges ------------ None Game ------ Seed ActuatorPhasingDesublimator Manual? 0 Play Time 00:09:16 Cumulative 109.7 hours Start 2024.09.02 @ 13:58:10 End 2024.09.02 @ 14:04:21 Sessions 1 Manual Loads 0 Difficulty Rogue Special Mode None Game No. 125 Rogue 125 Adventurer 0 Explorer 0 Win Type - Total 2 Types 2/0/0/0/0/0/0/0/0 Lore% 40 Gallery% 62 Achievement% 46 Wizard Run 0 Options --------- Layout 0 ASCII 0 Keyboard 1 Movement Numpad Keybinds 0 Fullscreen 2 Font 18/SmallcapsGlow Map View 76x50 Zoom Use 0% Tactical HUD 1 Map Filters NONE Filters NONE Steam 1 RUN: e398234d-8068-41a9-b3d3-9f0caf57c87b